Cogmind - Beta 14 @@@ ROGUE MODE // 2024.10.24 @ 15:52:02 Player: YA-B01 Result: Destroyed by Z-Imprinter with Zionite Laser-M Performance ------------- Evolutions (4) 2000 Regions Visited (13) 2600 Robots Destroyed (204) 1020 Value Destroyed (5867) 5867 Prototype IDs (37) 740 Alien Tech Used (0) 0 Bonus (772) 772 TOTAL SCORE: 12999 Bonus ------- High Alert Combat Kills 105 Follower Combat Kills 67 Met Imprinter 300 Was Imprinted 300 Cogmind --------- Core Integrity 0/850 Matter 64/300 Energy 100/100 System Corruption 0% Temperature Cool (9) Movement Core (50) Location -6/Deep Caves Parts ------- > --- POWER (1) -------- (None) > --- PROPULSION (4) --- (None) > --- UTILITY (8) ------ Improved Signal Interpreter Hacking Suite Improved System Shield > --- WEAPON (2) ------- Power Sword > --- INVENTORY (5) ---- Improved Trap Extractor (6/6 Dirty Bomb) Advanced EMP Blaster Dirty Datajack (20) Peak State ------------ > --- POWER ------------ F-cell Engine > --- PROPULSION ------- Armored Huge Wheel Armored Huge Wheel > --- UTILITY ---------- Huge Storage Unit Machine Analyzer Transmission Jammer Cloaking Device Improved Medium Armor Plating Layered Medium Armor Plating Hacking Suite Improved System Shield > --- WEAPON ----------- High-powered Shock Rifle EM Pulse Cannon > --- INVENTORY -------- Improved Deuterium Engine Armored Huge Wheel Huge Storage Unit Structural Scanner Trap Scanner Improved Signal Interpreter Improved Terrain Scanner Seismic Detector ECM Suite Hacking Suite Improved System Restoration Module Improved Trap Extractor Precision Beam Rifle Heavy Flak Cannon Mass Driver Advanced EMP Blaster Long-range Missile Launcher Improved Datajack Great Maul Power Sword Dirty Bomb Trap Dirty Bomb Trap Dirty Bomb Trap Dirty Bomb Trap [Rating: 67] Favorites ----------- Power F-cell Engine Engine F-cell Engine Power Core Light Nuclear Core Propulsion Wheel Treads Armored Treads Wheel Wheel Hover Unit Gravmag System Utility Huge Storage Unit Device Seismic Detector Storage Huge Storage Unit Processor Machine Analyzer Hackware Hacking Suite Protection Medium Armor Plating Weapon Precision Beam Rifle Energy Gun Precision Beam Rifle Energy Cannon Plasma Cannon Ballistic Gun Improved Assault Rifle Ballistic Cannon Mass Driver Launcher Rocket Launcher Special Weapon Remote Datajack Impact Weapon Heavy Flail Slashing Weapon Scythe Special Melee Weapon Improved Datajack Build | -11 -10 -10 -9 -9 -9 -8 -8 -7 -6 -6 -6 -6 -6 ------- Run | Yrd Mat Min Mat Min Exi Min Mat Fac Fac Low Low Zio Dee Slots Evolved 8 | . . . 2 . . . 2 2 2 . . . . Power . | . . . . . . . . . . . . . . Propulsion 2 | . . . 1 . . . 1 . . . . . . Utility 6 | . . . 1 . . . 1 2 2 . . . . Weapon . | . . . . . . . . . . . . . . Parts Attached 435 | 9 15 1 28 7 1 9 68 186 35 33 30 4 9 Power 21 | 1 1 . 3 . . 1 3 9 . 2 1 . . Engine 16 | 1 . . 3 . . 1 3 6 . 1 1 . . Core 5 | . 1 . . . . . . 3 . 1 . . . Reactor . | . . . . . . . . . . . . . . Propulsion 68 | 3 6 . 5 . . 4 18 27 4 . . . 1 Treads 7 | . . . 1 . . . 5 1 . . . . . Leg . | . . . . . . . . . . . . . . Wheel 60 | 3 6 . 4 . . 4 13 25 4 . . . 1 Hover 1 | . . . . . . . . 1 . . . . . Flight . | . . . . . . . . . . . . . . Utility 194 | 3 4 1 8 2 . 2 25 87 20 19 20 1 2 Device 127 | 1 . 1 6 2 . . 15 56 15 17 13 . 1 Storage 7 | 2 4 . . . . . . 1 . . . . . Processor 4 | . . . . . . 1 1 . 1 . 1 . . Hackware 4 | . . . . . . . . 2 2 . . . . Protection 52 | . . . 2 . . 1 9 28 2 2 6 1 1 Artifact . | . . . . . . . . . . . . . . Weapon 152 | 2 4 . 12 5 1 2 22 63 11 12 9 3 6 Energy Gun 58 | 1 4 . 9 1 . 1 10 22 2 2 5 . 1 Energy Cannon 24 | . . . . 1 . . 3 11 5 3 1 . . Ballistic Gun 10 | 1 . . 1 . . . . 6 . . 1 . 1 Ballistic Cannon 5 | . . . . . . . . . 1 2 . . 2 Launcher 16 | . . . 2 2 . . 4 6 1 . 1 . . Special Weapon 1 | . . . . . . . . . . 1 . . . Impact Weapon 9 | . . . . 1 . 1 5 1 . . . . 1 Slashing Weapon 22 | . . . . . . . . 14 2 3 1 1 1 Piercing Weapon . | . . . . . . . . . . . . . . Special Melee Weapon 7 | . . . . . 1 . . 3 . 1 . 2 . Unidentified Prototypes 7 | . . . 2 . . . 1 4 . . . . . Corrupted Parts 1 | . . . . . . . . 1 . . . . . System Corruption 3 | . . . . . . . . 3 . . . . . Parts Lost 75 | . 4 . 7 . . 8 9 27 3 . 2 . 15 Power 5 | . . . 1 . . 1 . 2 . . . . 1 Propulsion 29 | . 1 . 3 . . 3 6 11 2 . . . 3 Utility 19 | . 1 . 1 . . 3 1 7 1 . . . 5 Weapon 22 | . 2 . 2 . . 1 2 7 . . 2 . 6 Highest Loss Streak 15 | . 1 . 3 . . 6 2 4 2 . 1 . 15 To Critical Strikes 2 | . . . . . . . . . . . 2 . . Average Slot Usage (%) 90 | . 94 99 99 100 100 93 95 86 92 84 85 85 77 Engine 6 | . 4 . 10 11 11 10 9 6 6 5 6 6 5 Core 1 | . 9 14 . . . . . . . . . . . Wheel 20 | . 27 28 31 33 33 30 27 17 19 13 13 13 11 Device 18 | . 9 13 18 15 22 9 12 17 18 23 23 18 10 Storage 8 | . 14 14 11 11 11 11 9 7 6 6 6 6 5 Processor 5 | . . . . . . 3 9 7 13 6 7 13 10 Hackware 6 | . . . . . . . . 6 13 13 13 13 13 Protection 2 | . . . 3 6 . 7 4 4 1 2 1 . 5 Energy Gun 9 | . 21 28 21 4 11 11 9 5 3 3 9 7 4 Energy Cannon 2 | . . . . 1 . . 4 4 3 4 2 . . Peak Build Rating 67 | 8 10 13 22 22 21 21 30 56 56 64 67 61 63 Average Rating 38 | 5 9 12 19 21 21 19 25 36 49 56 60 60 55 On Entrance 29 | . 8 9 13 21 21 21 19 23 42 56 58 61 61 Naked Turns . | . . . . . . . . . . . . . . Heaviest Build 125 | 19 90 89 101 103 97 99 102 118 116 123 121 108 125 Greatest Support 56 | 20 20 20 32 32 32 32 48 56 56 56 56 56 56 Greatest Overweight (x) 35 | . 29 4 4 3 3 8 8 35 2 3 2 1 2 Average Overweight (x) 1 | . 2 4 2 3 2 2 2 2 1 1 1 1 . Largest Inventory Capacity 25 | 8 25 25 25 25 25 25 25 25 25 25 25 25 25 Average Capacity 24 | 7 21 25 25 25 25 25 25 25 25 25 25 25 22 Most Carried 25 | 8 18 25 25 25 25 25 25 25 25 25 25 25 25 Average Carried 22 | 3 11 22 24 25 25 21 22 23 24 23 23 24 21 Final Capacity 25 | 8 25 25 25 25 25 25 25 25 25 25 25 25 5 Final Carried 25 | 8 17 25 25 25 25 22 25 25 25 25 25 25 3 Class Distribution -------------------- 28% | Hacker-Mutant 28% | Mutant 25% | Scavenger-Mutant 10% | Trapper-Mutant 7% | Infiltrator-Mutant Dominant Class ---------------- Mutant | -10/Materials Scavenger-Mutant | -10/Mines Mutant | -9/Materials Mutant | -9/Mines Mutant | -9/Exiles Mutant | -8/Mines Scavenger-Mutant | -8/Materials Mutant | -7/Factory Hacker-Mutant | -6/Factory Hacker-Mutant | -6/Lower Caves Hacker-Mutant | -6/Lower Caves Trapper-Mutant | -6/Zion Trapper-Mutant | -6/Deep Caves Resources | -11 -10 -10 -9 -9 -9 -8 -8 -7 -6 -6 -6 -6 -6 ----------- Run | Yrd Mat Min Mat Min Exi Min Mat Fac Fac Low Low Zio Dee Matter Collected 5337 | 305 252 28 276 103 . 65 641 2344 398 415 441 69 . Remotely . | . . . . . . . . . . . . . . Salvage Created 8054 | 161 803 76 1241 60 . 255 1553 2917 511 127 281 . 69 Parts 467 | 16 49 9 81 4 . 14 82 163 28 1 17 . 3 Haulers Intercepted 9 | . 1 . 4 . . . 2 2 . . . . . Recyclers Shooed 12 | . 1 . 5 . . . 1 4 1 . . . . Parts Field Recycled . | . . . . . . . . . . . . . . Retrieved Matter . | . . . . . . . . . . . . . . Parts Self-Destructed 3 | . . . . . . . . . . . 3 . . Prevented 17 | . . . . . . . . . . 3 14 . . Kills | -11 -10 -10 -9 -9 -9 -8 -8 -7 -6 -6 -6 -6 -6 ------- Run | Yrd Mat Min Mat Min Exi Min Mat Fac Fac Low Low Zio Dee Combat Hostiles Destroyed 122 | . 15 . 20 2 . 4 20 46 6 1 6 . 2 Melee 8 | . . . . . . 2 . 5 . . . . 1 Guns 56 | . 14 . 18 . . . 7 13 2 . 2 . . Cannons 21 | . . . . . . . 4 12 4 1 . . . AOE 25 | . . . 2 2 . . 9 9 . . 3 . . Classes Destroyed 20 | 2 5 1 2 1 . 1 2 2 . 2 1 . 1 Worker 22 | . . 2 3 . . 1 3 10 3 . . . . Builder 12 | . 1 . . . . 1 3 5 2 . . . . Tunneler 8 | 3 . 2 . . . 2 1 . . . . . . Hauler 9 | . 1 . 4 . . . 2 2 . . . . . Recycler 16 | 1 3 . 1 1 . . 5 4 1 . . . . Minesweeper 2 | . . . . . . . . . . 1 1 . . Mechanic 3 | . . . . . . . 2 1 . . . . . Operator 4 | . . . 2 . . . . 2 . . . . . Watcher 8 | . 2 . 1 . . . 3 2 . . . . . Swarmer 25 | . 6 . 3 . . . 6 8 2 . . . . Grunt 44 | . 9 . 8 . . 3 5 18 1 . . . . Brawler 1 | . . . . . . . . . . . 1 . . Duelist 2 | . . . . . . 1 . 1 . . . . . Sentry 24 | . . . 9 . . . 8 5 1 . 1 . . Specialist 2 | . . . . . . . . 2 . . . . . Hunter 7 | . . . . . . . 1 2 1 . 3 . . Programmer 12 | . . . . . . . . 10 1 . 1 . . Behemoth 1 | . . . . . . . . . . 1 . . . Z-Light 2 | . . . . . . . . . . . . . 2 Assembled 2 | . . . . 2 . . . . . . . . . Best Kill Streak 8 | 2 6 1 5 1 . 3 8 6 8 1 3 . 2 Combat Bots Only 5 | . 5 . 5 1 . 2 4 4 4 1 3 . 2 Max Kills in Single Turn 4 | 1 2 1 2 1 . 1 4 4 1 1 1 . 1 Gunslinging 1 | . 1 . 1 . . . . . . . . . . Exploded 2 | . . . 1 1 . . 2 2 . . 1 . . Melee 1 | . . . . . . 1 . 1 . . . . 1 Uniques/NPCs Destroyed . | . . . . . . . . . . . . . . Combat | -11 -10 -10 -9 -9 -9 -8 -8 -7 -6 -6 -6 -6 -6 -------- Run | Yrd Mat Min Mat Min Exi Min Mat Fac Fac Low Low Zio Dee Hostile Shots Fired 1036 | . 70 . 83 1 . 27 98 514 56 11 60 . 116 Missed 326 | . 19 . 27 1 . 3 30 169 19 6 16 . 36 Damage Taken 11299 | 9 564 27 835 . . 417 1136 4483 554 . 731 . 2543 Core 1909 | . 141 11 105 . . 93 161 523 81 . 34 . 760 Absorbed by Shields . | . . . . . . . . . . . . . . Regen/Repaired (Parts) 239 | . . . . . . . . 239 . . . . . Core Remaining (%) 56 | 100 . 39 . . . 50 70 25 . . . . . Volleys Fired 518 | 5 76 6 92 4 . 11 76 165 27 19 25 . 12 Largest 2 | 2 2 2 2 1 . 2 2 2 2 2 2 . 2 Hottest 149 | 60 90 90 115 56 . 96 131 149 141 141 123 . 118 Shots Fired 917 | 10 144 12 179 4 . 13 133 300 41 22 40 . 19 Gun 668 | 10 144 12 177 1 . 13 85 183 9 3 24 . 7 Cannon 196 | . . . . . . . 34 96 30 19 5 . 12 Launcher 53 | . . . 2 3 . . 14 21 2 . 11 . . Special . | . . . . . . . . . . . . . . Kinetic 119 | 5 45 . . . . . . 35 5 11 . . 18 Thermal 484 | . 87 12 95 1 . 11 94 155 8 11 9 . 1 Explosive 22 | . . . 2 3 . . 1 5 . . 11 . . Electromagnetic 292 | 5 12 . 82 . . 2 38 105 28 . 20 . . Robot Hit Streak 21 | 5 10 6 19 1 . 4 15 13 21 6 11 . 3 Robot Miss Streak 12 | 1 5 3 8 2 . 2 4 4 5 . 3 . 12 Penetration Max . | . . . . . . . . . . . . . . Secondary Targets 4 | . 3 . 1 . . . . . . . . . . Max Gunslinging Chain 1 | . 1 . 1 . . . . . . . . . . Shots Hit Robots 628 | 7 88 7 120 1 6 13 95 218 28 5 25 3 12 Core Hits 317 | 5 33 4 51 5 . 5 59 103 24 2 15 . 11 Critical Kills 3 | . . . . . . 1 . 2 . . . . . Critical Parts Destroyed 3 | . . . . . . 2 1 . . . . . . Critical Strikes 30 | . 4 . 9 . . 3 6 7 1 . . . . Burn 19 | . 4 . 4 . . . 5 5 1 . . . . Meltdown 2 | . . . . . . . . 2 . . . . . Corrupt 5 | . . . 5 . . . . . . . . . . Smash 4 | . . . . . . 3 1 . . . . . . Melee Attacks 123 | . . . . 1 6 14 7 54 22 7 2 3 7 Impact 25 | . . . . 1 . 14 7 2 . . . . 1 Slashing 88 | . . . . . . . . 52 22 6 2 . 6 Piercing . | . . . . . . . . . . . . . . Sneak Attacks 21 | . . . . . 6 1 . 7 1 3 . 3 . Combat Hostiles . | . . . . . . . . . . . . . . Follow-up Attacks 1 | . . . . . . . . . . . . . 1 Damage Inflicted 16534 | 129 1132 96 1771 146 . 490 3428 6499 824 222 1312 . 485 Guns 7212 | 91 1073 83 1607 17 . 118 1140 2471 168 17 283 . 144 Cannons 3124 | . . . . . . . 619 1741 511 28 99 . 126 Explosions 4476 | 38 43 . 164 129 . . 1625 1466 81 . 930 . . Melee 1693 | . . . . . . 372 44 821 64 177 . . 215 Ramming 29 | . 16 13 . . . . . . . . . . . Kinetic 1093 | 39 322 . . . . . . 398 82 . . . 252 Thermal 6485 | 38 647 83 913 17 . 118 1552 2810 141 45 103 . 18 Explosive 2525 | . . . 55 129 . . 760 678 . . 903 . . Electromagnetic 4709 | 52 147 . 803 . . . 1072 1792 537 . 306 . . Impact 464 | . . . . . . 372 44 . . . . . 48 Slashing 1229 | . . . . . . . . 821 64 177 . . 167 Piercing . | . . . . . . . . . . . . . . Highest Corruption 13 | . . . . . . . . 13 6 6 3 . . Average Corruption 6 | . . . . . . . . 7 4 2 2 . . Corruption Purged 15 | . . . . . . . . 5 1 6 3 . . Corruption Blocked . | . . . . . . . . . . . . . . Effects 226 | . . . . . . . . 194 11 2 19 . . Message Errors 54 | . . . . . . . . 46 2 1 5 . . Matter Fused 51 | . . . . . . . . 45 4 . 2 . . Heat Flow Errors 23 | . . . . . . . . 16 1 . 6 . . Energy Discharges 25 | . . . . . . . . 23 . . 2 . . Parts Rejected 3 | . . . . . . . . 2 . . 1 . . Parts Fused 1 | . . . . . . . . . . . 1 . . Data Loss (minor) 25 | . . . . . . . . 23 1 . 1 . . Data Loss (major) 15 | . . . . . . . . 15 . . . . . Misfires 14 | . . . . . . . . 11 2 . 1 . . Alerts 7 | . . . . . . . . 6 . 1 . . . Weapon Failures 8 | . . . . . . . . 7 1 . . . . Overload Shots . | . . . . . . . . . . . . . . Overflow Damage 657 | . . . . . . 177 135 193 26 44 38 . 44 Projectiles 54 | . . . . . . . 15 36 2 . . . 1 Explosions 147 | . . . . . . . 76 33 . . 38 . . Melee 456 | . . . . . . 177 44 124 24 44 . . 43 Knockbacks 11 | . . . . . . . 1 . 3 . . . 7 Impact 2 | . . . . . . . 1 . . . . . 1 Kinetic 8 | . . . . . . . . . 2 . . . 6 Secondary 1 | . . . . . . . . . 1 . . . . Self-Inflicted Damage 522 | 9 35 6 130 . . . 117 147 20 . 58 . . Shots 17 | 1 1 . 3 . . . 4 6 1 . 1 . . Rammed 2 | . 1 1 . . . . . . . . . . . Targets Rammed 2 | . 1 1 . . . . . . . . . . . Kicked . | . . . . . . . . . . . . . . Crushed . | . . . . . . . . . . . . . . Highest Temperature 390 | 12 390 36 126 12 . 80 126 381 154 132 261 . 271 Average Temperature 65 | 12 91 22 33 9 . 29 30 81 23 54 78 . 116 Received Heat Transfer 2883 | . 216 . 300 . . 162 315 1116 45 . 9 . 720 Effects 8 | . 3 . . . . . . 5 . . . . . Energy Bleed 4 | . 2 . . . . . . 2 . . . . . Interference 3 | . . . . . . . . 3 . . . . . Damage (minor) 1 | . 1 . . . . . . . . . . . . Siege Activations . | . . . . . . . . . . . . . . Robots Corrupted 9 | . . . . . . 2 1 4 . . 1 . 1 Combat Hostiles 8 | . . . . . . 2 . 4 . . 1 . 1 Parts Fried 22 | . . . 1 . . 3 7 3 5 . 2 . 1 Impact Corruptions 9 | . . . . . . 4 3 . . . . . 2 Robots Melted 4 | . 1 . . . . . . 3 . . . . . Combat Hostiles 4 | . 1 . . . . . . 3 . . . . . Parts Melted 42 | . 4 . 8 . . . 7 17 3 3 . . . Heat Transferred 14281 | 50 2076 211 2555 37 . 259 3260 5193 322 87 222 . 9 Parts Sabotaged . | . . . . . . . . . . . . . . Parts Stolen . | . . . . . . . . . . . . . . Parts Stripped . | . . . . . . . . . . . . . . Power Chain Reactions 15 | 1 1 . 2 . . . 6 4 . . 1 . . Alert | -11 -10 -10 -9 -9 -9 -8 -8 -7 -6 -6 -6 -6 -6 ------- Run | Yrd Mat Min Mat Min Exi Min Mat Fac Fac Low Low Zio Dee Peak Influence 557 | 20 283 36 396 164 . 101 557 556 412 . . . . Initial 272 | . 13 31 1 140 . . . 136 272 . . . . Average 186 | 7 137 15 136 72 . 34 281 237 275 . . . . Maximum Alert Level 2 | . 1 . 1 . . . 2 2 2 . . . . Low Security (%) 60 | 100 76 100 85 100 . 100 15 49 14 . . . . Level 1 31 | . 23 . 14 . . . 72 34 84 . . . . Level 2 7 | . . . . . . . 11 16 1 . . . . Level 3 . | . . . . . . . . . . . . . . Level 4 . | . . . . . . . . . . . . . . Level 5 . | . . . . . . . . . . . . . . High Security . | . . . . . . . . . . . . . . Max Security . | . . . . . . . . . . . . . . Squads Dispatched 36 | . 3 1 3 . . 1 . 23 5 . . . . Investigation 8 | . 2 1 1 . . . . 3 1 . . . . Extermination 11 | . . . . . . . . 10 1 . . . . Reinforcement 16 | . 1 . 2 . . 1 . 9 3 . . . . Assault . | . . . . . . . . . . . . . . Garrison 1 | . . . . . . . . 1 . . . . . Intercept . | . . . . . . . . . . . . . . Searches Triggered . | . . . . . . . . . . . . . . Construction Impeded 6 | . . . . . . 1 . 4 1 . . . . Haulers Reinforced 1 | . . . . . . . . 1 . . . . . Active Scanning Responses . | . . . . . . . . . . . . . . Cargo Convoy Interrupts 1 | . . . . . . . . 1 . . . . . Stealth | -11 -10 -10 -9 -9 -9 -8 -8 -7 -6 -6 -6 -6 -6 --------- Run | Yrd Mat Min Mat Min Exi Min Mat Fac Fac Low Low Zio Dee Distress Signals 8 | . . . 2 1 . . 3 2 . . . . . Communications Jammed 14 | . . . . . . . . 11 3 . . . . Distress Signals 13 | . . . . . . . . 10 3 . . . . Times Spotted 205 | . 25 . 40 3 . 6 30 70 18 1 9 . 3 Peak Tracking Total 5 | . 5 . 4 1 . 3 5 5 3 1 3 . 3 Tactical Retreats 21 | . 3 . 1 1 . . 2 7 4 . 3 . . Traps | -11 -10 -10 -9 -9 -9 -8 -8 -7 -6 -6 -6 -6 -6 ------- Run | Yrd Mat Min Mat Min Exi Min Mat Fac Fac Low Low Zio Dee Traps Triggered 16 | . 2 1 1 . . . 3 7 2 . . . . Indirectly . | . . . . . . . . . . . . . . Trap Hack Attempts 18 | . . . . . . . . 18 . . . . . Triggered . | . . . . . . . . . . . . . . Disarmed . | . . . . . . . . . . . . . . Reprogrammed 3 | . . . . . . . . 3 . . . . . Reused 13 | . . . . . . 3 . 2 . 7 1 . . Traps Extracted 14 | . . . . . . . . 2 . 7 5 . . Installed 25 | . . . . . . 3 . 4 . 10 8 . . Triggered 15 | . . . . . . 3 . 3 . 8 1 . . Most Traps Carried 10 | . . 5 5 5 5 5 2 2 . 10 8 8 8 Machines | -11 -10 -10 -9 -9 -9 -8 -8 -7 -6 -6 -6 -6 -6 ---------- Run | Yrd Mat Min Mat Min Exi Min Mat Fac Fac Low Low Zio Dee Machines Disabled 22 | . . . 9 . . . 5 8 . . . . . Max in Single Turn 2 | . . . 1 . . . 2 2 . . . . . Garrison Access 3 | . . . . . . . 1 2 . . . . . Machines Repaired . | . . . . . . . . . . . . . . Machines Dismantled . | . . . . . . . . . . . . . . Machines Sabotaged . | . . . . . . . . . . . . . . Overloaded Fab Kills . | . . . . . . . . . . . . . . Hacking | -11 -10 -10 -9 -9 -9 -8 -8 -7 -6 -6 -6 -6 -6 --------- Run | Yrd Mat Min Mat Min Exi Min Mat Fac Fac Low Low Zio Dee Machines Accessed 79 | . 8 3 16 . 1 . 17 27 5 1 1 . . Terminals 44 | . 7 1 10 . . . 12 10 4 . . . . Fabricators 5 | . . . . . . . . 5 . . . . . Repair Stations 7 | . . . 2 . . . 1 4 . . . . . Recycling Units 8 | . 1 . 2 . . . 2 3 . . . . . Scanalyzers 5 | . . . 2 . . . 1 2 . . . . . Garrison Access 5 | . . . . . . . 1 3 1 . . . . Total Hacks 219 | . 19 5 59 . 1 . 50 68 15 1 1 . . Successful 127 | . 6 3 40 . 1 . 30 41 4 1 1 . . Failed 91 | . 13 2 18 . . . 20 27 11 . . . . Catastrophic 19 | . 3 1 2 . . . 1 10 2 . . . . Database Lockouts 1 | . . . 1 . . . . . . . . . . Manual 86 | . 10 . 26 . . . 19 20 2 . . 9 . Terminals 140 | . 17 3 38 . . . 35 37 10 . . . . Fabricators 11 | . . . . . . . . 11 . . . . . Repair Stations 12 | . . . 4 . . . 2 6 . . . . . Recycling Units 20 | . 2 . 5 . . . 9 4 . . . . . Scanalyzers 19 | . . . 12 . . . 2 5 . . . . . Garrison Access 12 | . . . . . . . 2 5 5 . . . . Terminal Hacks 64 | . 3 3 17 . 1 . 16 19 3 1 1 . . Record 5 | . . . 2 . 1 . . 2 . . . . . Robot Analysis 3 | . . . 1 . . . 1 1 . . . . . Prototype ID Bank 11 | . 1 . 4 . . . 4 2 . . . . . Open Door 4 | . . 2 . . . . . . . 1 1 . . Branch Access Points 4 | . . . 1 . . . 1 1 1 . . . . Emergency Access Points 1 | . . . . . . . . 1 . . . . . Terminal Index 1 | . . . 1 . . . . . . . . . . Alert Level 10 | . . . 3 . . . 1 6 . . . . . Unreport Threat 4 | . . . . . . . 1 3 . . . . . Locate Traps 10 | . 2 . 1 . . . 5 1 1 . . . . Patrol Status 1 | . . . . . . . . 1 . . . . . Hauler Manifests 1 | . . . . . . . . 1 . . . . . Zone Layout 9 | . . 1 4 . . . 3 . 1 . . . . Fabricator Hacks 4 | . . . . . . . . 4 . . . . . Network Status 1 | . . . . . . . . 1 . . . . . Load Schematic 2 | . . . . . . . . 2 . . . . . Build 1 | . . . . . . . . 1 . . . . . Repair Station Hacks 4 | . . . . . . . 1 3 . . . . . Scan Component 3 | . . . . . . . 1 2 . . . . . Repair 1 | . . . . . . . . 1 . . . . . Recycling Unit Hacks 6 | . . . 2 . . . 2 2 . . . . . Retrieve Components 6 | . . . 2 . . . 2 2 . . . . . Scanalyzer 18 | . . . 12 . . . 2 4 . . . . . Insert Component 9 | . . . 6 . . . 1 2 . . . . . Analyze 9 | . . . 6 . . . 1 2 . . . . . Garrison Access Hacks 3 | . . . . . . . 1 2 . . . . . Seal Access 3 | . . . . . . . 1 2 . . . . . Unauthorized Hacks 28 | . 3 . 9 . . . 8 7 1 . . . . Terminals 22 | . 3 . 8 . . . 5 5 1 . . . . Assimilate 2 | . . . . . . . . 2 . . . . . Botnet 17 | . 3 . 7 . . . 4 2 1 . . . . Operators 3 | . . . 1 . . . 1 1 . . . . . Fabricators 2 | . . . . . . . . 2 . . . . . Fabnet 2 | . . . . . . . . 2 . . . . . Repair Stations . | . . . . . . . . . . . . . . Recycling Units 4 | . . . 1 . . . 3 . . . . . . Monitor 1 | . . . . . . . 1 . . . . . . Reject 1 | . . . . . . . 1 . . . . . . Recyclers 2 | . . . 1 . . . 1 . . . . . . Scanalyzers . | . . . . . . . . . . . . . . Garrison Access . | . . . . . . . . . . . . . . Data Cores Recovered . | . . . . . . . . . . . . . . Used . | . . . . . . . . . . . . . . Hacking Detections 68 | . 8 1 15 . . . 16 23 5 . . . . Full Trace Events 6 | . 2 . . . . . . 3 1 . . . . Feedback Events 1 | . . . . . . . . . 1 . . . . Corruption 1 | . . . . . . . . . 1 . . . . Feedback Blocked . | . . . . . . . . . . . . . . Robot Schematics Acquired . | . . . . . . . . . . . . . . Robots Built . | . . . . . . . . . . . . . . Authchips . | . . . . . . . . . . . . . . Time . | . . . . . . . . . . . . . . Total Robot Build Rating . | . . . . . . . . . . . . . . Part Schematics Acquired 9 | . . . 6 . . . 1 2 . . . . . Parts Built 2 | . . . . . . . . 2 . . . . . Authchips . | . . . . . . . . . . . . . . Time 84 | . . . . . . . . 84 . . . . . Total Part Build Rating 8 | . . . . . . . . 8 . . . . . Parts Repaired 1 | . . . . . . . . 1 . . . . . Time 44 | . . . . . . . . 44 . . . . . Parts Recycled . | . . . . . . . . . . . . . . Recycled Matter . | . . . . . . . . . . . . . . Retrieved Matter . | . . . . . . . . . . . . . . Retrieved Components 53 | . . . 16 . . . 18 19 . . . . . Parts Scanalyzed 9 | . . . 6 . . . 1 2 . . . . . Part Schematics Acquired 9 | . . . 6 . . . 1 2 . . . . . Parts Damaged 1 | . . . 1 . . . . . . . . . . Bothacking | -11 -10 -10 -9 -9 -9 -8 -8 -7 -6 -6 -6 -6 -6 ------------ Run | Yrd Mat Min Mat Min Exi Min Mat Fac Fac Low Low Zio Dee Used RIF Installer . | . . . . . . . . . . . . . . Robots Hacked 9 | . . . . . 5 . . . . 1 . 3 . Non-combat 4 | . . . . . 3 . . . . . . 1 . Combat 5 | . . . . . 2 . . . . 1 . 2 . Robot Hacks Applied 9 | . . . . . 5 . . . . 1 . 3 . parse_system 9 | . . . . . 5 . . . . 1 . 3 . Relay Couplers Released . | . . . . . . . . . . . . . . Fabnet Peak Effective % 6 | . . . . . . . . . 6 6 6 6 6 Robots Rewired . | . . . . . . . . . . . . . . Allies Hacked . | . . . . . . . . . . . . . . Hacks Repelled . | . . . . . . . . . . . . . . Allies | -11 -10 -10 -9 -9 -9 -8 -8 -7 -6 -6 -6 -6 -6 -------- Run | Yrd Mat Min Mat Min Exi Min Mat Fac Fac Low Low Zio Dee Total Allies 8 | . . 3 . . . . . 1 . . . 4 . Largest Group 4 | . . 3 3 . . . . 1 . . . 4 4 Highest-Rated Group 156 | . . 40 40 . . . . 26 . . . 156 156 Highest-Rated Ally 40 | . . 16 16 . . . . 26 . . . 40 40 Total Orders 8 | . . 2 . . . . . 6 . . . . . STAY 4 | . . 1 . . . . . 3 . . . . . FOLLOW 4 | . . 1 . . . . . 3 . . . . . Ally Attacks 57 | . . . 57 . . . . . . . . . . Total Damage 441 | . . . 441 . . . . . . . . . . Kills 5 | . . . 5 . . . . . . . . . . Allies Corrupted 1 | . . . . . . . . 1 . . . . . Allies Melted . | . . . . . . . . . . . . . . Intel | -11 -10 -10 -9 -9 -9 -8 -8 -7 -6 -6 -6 -6 -6 ------- Run | Yrd Mat Min Mat Min Exi Min Mat Fac Fac Low Low Zio Dee Robot Analysis Total 3 | . . . 1 . . . 1 1 . . . . . Derelict Logs Recovered 7 | . . 1 . . . . . . . 2 2 2 . Drone Launches . | . . . . . . . . . . . . . . Drone Recoveries . | . . . . . . . . . . . . . . Exploration | -11 -10 -10 -9 -9 -9 -8 -8 -7 -6 -6 -6 -6 -6 ------------- Run | Yrd Mat Min Mat Min Exi Min Mat Fac Fac Low Low Zio Dee Turns Passed 25299 | 109 1391 1047 2818 879 363 500 1821 6272 960 4335 2465 2033 306 Spaces Moved 15348 | 84 755 677 1776 244 306 301 1033 3392 599 2421 1858 1684 218 Core 36 | 1 1 . . . . . . 28 . . . . 6 Treads . | . . . . . . . . . . . . . . Legs . | . . . . . . . . . . . . . . Wheels 15296 | 83 754 677 1776 244 306 301 1033 3348 599 2421 1858 1684 212 Hover 16 | . . . . . . . . 16 . . . . . Flight . | . . . . . . . . . . . . . . Fastest Speed 50 | 50 80 140 110 128 113 113 102 110 115 115 115 115 50 Average Speed 123 | 79 118 140 123 128 115 126 128 135 117 116 116 115 113 Slowest Speed 1800 | 80 1500 140 145 128 128 210 210 1800 120 145 130 115 150 Overloaded Moves . | . . . . . . . . . . . . . . Propulsion Burnouts . | . . . . . . . . . . . . . . Robots Hopped . | . . . . . . . . . . . . . . Cave-ins Triggered . | . . . . . . . . . . . . . . Exploration Rate (%) 67 | 6 98 99 92 43 72 56 84 67 21 97 95 92 26 Regions Visited 13 Branch Regions 8 Pre-discovered Areas 3 | . . . . . 1 . . . . 1 1 . . Known Exits Taken 6 | . . . 1 . . 1 1 . 1 . 1 1 . Unknown Exits Taken 7 | 1 1 1 . 1 1 . . 1 . 1 . . . Scrap Searched 16 | . . 1 . 1 . 2 . . . 7 4 1 . Spaces Dug 79 | . . . . 1 . 1 6 34 20 15 2 . . Terrain Destroyed 369 | 2 6 . 22 21 . 1 89 86 20 15 104 . 3 Melee 67 | . . . . 1 . 1 6 34 20 3 2 . . Projectile 18 | . . . . . . . 3 . . 12 . . 3 AOE 284 | 2 6 . 22 20 . . 80 52 . . 102 . . Terrain Rammed . | . . . . . . . . . . . . . . Walls Destroyed . | . . . . . . . . . . . . . . Machines Disabled . | . . . . . . . . . . . . . . Actions | -11 -10 -10 -9 -9 -9 -8 -8 -7 -6 -6 -6 -6 -6 --------- Run | Yrd Mat Min Mat Min Exi Min Mat Fac Fac Low Low Zio Dee Total 20570 | 114 1103 765 2223 803 312 386 1358 4662 773 3929 2114 1781 247 Wait 3761 | 6 241 65 301 546 . 43 145 749 63 1351 168 83 . Move 15335 | 83 754 676 1775 243 305 300 1032 3391 598 2420 1857 1683 218 Hop . | . . . . . . . . . . . . . . Pick Up 153 | 8 9 12 12 1 . 3 9 42 8 36 10 3 . Fast Attach 80 | 8 5 1 6 . . 3 12 24 6 8 4 2 1 Attach 80 | . 2 . 8 . . 4 12 28 6 8 4 1 7 Detach 37 | 1 1 . 3 . . . 8 7 3 10 3 . 1 Swap 275 | 1 8 . 14 7 1 2 44 134 23 17 22 1 1 Drop 156 | 2 6 4 12 1 . 3 13 46 9 43 11 5 1 Fire 518 | 5 76 6 92 4 . 11 76 165 27 19 25 . 12 Melee 122 | . . . . 1 6 14 7 54 22 7 2 3 6 Ram 2 | . 1 1 . . . . . . . . . . . Kick . | . . . . . . . . . . . . . . Crush . | . . . . . . . . . . . . . . Escape Stasis 8 | . . . . . . . . . 8 . . . . Rewire . | . . . . . . . . . . . . . . Trap 43 | . . . . . . 3 . 22 . 10 8 . . Miscellaneous . | . . . . . . . . . . . . . . Route ------- -11/Scrapyard -10/Materials (discovered 4 exits: *Mat x3 / *Min) -10/Mines (discovered 3 exits: *Mat x2 / [*Sub]) -9/Materials (discovered 4 exits: *Mat x3 / *Min) -9/Mines -9/Exiles -8/Mines -8/Materials (discovered 3 exits: *Fac x3) -7/Factory (discovered 4 exits: *Fac / Sto / Low x2) -6/Factory (discovered 2 exits: *Low x2) -6/Lower Caves -6/Lower Caves (discovered 2 exits: *Fac / *Zio) -6/Zion (discovered 2 exits: *Dee / *Pro) -6/Deep Caves History --------- Turn | Location | Event 7 | -11/Scrapyard | Discovered new exit (range 15) 110 | -11/Scrapyard | Entered Materials 315 | -10/Materials | Build established: Mutant 416 | -10/Materials | Discovered new exit (range 12) 843 | -10/Materials | Build established: Scavenger-Mutant 869 | -10/Materials | Discovered new exit (range 5) 1085 | -10/Materials | Core integrity fell below 50% 1406 | -10/Materials | Discovered new exit (range 7) 1433 | -10/Materials | Discovered new exit (range 16) 1444 | -10/Materials | Build established: Mutant 1501 | -10/Materials | Entered Mines 1626 | -10/Mines | Met a Derelict shopkeep closing up shop 1705 | -10/Mines | Discovered new exit (range 4) 1717 | -10/Mines | Assisted by bots powering up and referring to "LRC-V3" 1736 | -10/Mines | Met a Derelict who couldn't figure out how to use a Trap Extractor 1850 | -10/Mines | Build established: Scavenger-Mutant 1887 | -10/Mines | Discovered new exit (range 6) 2030 | -10/Mines | Discovered new exit (range 15) 2161 | -10/Mines | Found a hidden stash of uninstalled traps 2548 | -10/Mines | Entered Materials 2548 | -9/Materials | Accompanied by 3 allies 2548 | -9/Materials | Evolved 2 slots: Propulsion x1, Utility x1 2787 | -9/Materials | Lost 3 allies 3216 | -9/Materials | Lost 3 parts (1n1u1w) 3428 | -9/Materials | Discovered new exit (range 9) 4107 | -9/Materials | Central database locked down 4258 | -9/Materials | Build established: Mutant 4413 | -9/Materials | Discovered new exit (range 15) 4855 | -9/Materials | Discovered new exit (range 13) 5209 | -9/Materials | Discovered new exit (range 12) 5233 | -9/Materials | Identified exit to Mines 5366 | -9/Materials | Entered Mines 5367 | -9/Mines | Assembled infested the area 5372 | -9/Mines | Assisted by a Guerilla fighting off Assembled 6199 | -9/Mines | Received a Rocket Launcher from a helpful Derelict 6240 | -9/Mines | Deemed a non-threat by the Exiles lab entrance 6240 | -9/Mines | Discovered new exit (range 5) 6245 | -9/Mines | Entered Exiles 6276 | -9/Exiles | Met 8R-AWN 6297 | -9/Exiles | Met EX-HEX 6365 | -9/Exiles | Met EX-BIN 6400 | -9/Exiles | Met EX-DEC 6445 | -9/Exiles | Visited The Gauntlet 6525 | -9/Exiles | Learned location of Zion (-6) 6597 | -9/Exiles | Discovered new exit (range 10) 6608 | -9/Exiles | Entered Mines 6778 | -8/Mines | Lost 6 parts (1p3n1u1w) 7000 | -8/Mines | Discovered new exit (range 8) 7107 | -8/Mines | Identified exit to Materials 7108 | -8/Mines | Entered Materials 7108 | -8/Materials | Evolved 2 slots: Propulsion x1, Utility x1 7510 | -8/Materials | Build established: Scavenger-Mutant 7570 | -8/Materials | Discovered new exit (range 16) 8532 | -8/Materials | Discovered new exit (range 8) 8549 | -8/Materials | Identified exit to Factory 8856 | -8/Materials | Discovered exit to Factory (range 6) 8929 | -8/Materials | Entered Factory 8929 | -7/Factory | Evolved 2 slots: Utility x2 9340 | -7/Factory | Lost 4 parts (1p3n) 9567 | -7/Factory | Lost 3 parts (1n1u1w) 9612 | -7/Factory | Lost 4 parts (1p2u1w) 10393 | -7/Factory | Cargo convoy interrupted 10440 | -7/Factory | Garrison activated, responded to threat 10528 | -7/Factory | Lost 3 parts (1n1u1w) 10784 | -7/Factory | Build established: Mutant 11767 | -7/Factory | Build established: Scavenger-Mutant 12911 | -7/Factory | Core integrity fell below 50% 12971 | -7/Factory | Fabricated Imp. Trap Extractor? 13108 | -7/Factory | Build established: Infiltrator-Mutant 13283 | -7/Factory | System corruption reached 10% 13617 | -7/Factory | Repaired Imp. Medium Armor Plating? 14107 | -7/Factory | Found Prototype Device 14107 | -7/Factory | Identified Adv. EM Disruption Field 14152 | -7/Factory | Identified exit to Storage 14152 | -7/Factory | Identified exit to Lower Caves 15197 | -7/Factory | Discovered new exit (range 4) 15201 | -7/Factory | Entered another Factory area 15201 | -6/Factory | Evolved 2 slots: Utility x2 15497 | -6/Factory | Build established: Hacker-Mutant 15540 | -6/Factory | Identified exit to Lower Caves 16161 | -6/Factory | Entered Lower Caves 16318 | -6/Lower Caves | Encountered a Warlord checkpoint 17134 | -6/Lower Caves | Spotted B-75 Beast 18047 | -6/Lower Caves | Learned location of 1 exit from Factory 18156 | -6/Lower Caves | Discovered new exit (range 10) 19401 | -6/Lower Caves | Destroyed B-75 Beast 20496 | -6/Lower Caves | Entered another Lower Caves area 20497 | -6/Lower Caves | Discovered new exit (range 4) 21011 | -6/Lower Caves | Attracted the attention of an 0b10 outpost 21376 | -6/Lower Caves | Learned 8 Factory zone layouts 21404 | -6/Lower Caves | Ambushed by research squad 21557 | -6/Lower Caves | Encountered a Warlord checkpoint 21692 | -6/Lower Caves | Discovered new exit (range 6) 22486 | -6/Lower Caves | Identified exit to Factory 22950 | -6/Lower Caves | Build established: Trapper-Mutant 22959 | -6/Lower Caves | Identified exit to Zion 22961 | -6/Lower Caves | Entered Zion 23044 | -6/Zion | Discovered new exit (range 13) 23057 | -6/Zion | Identified exit to Proximity Caves 23345 | -6/Zion | Acquired unknown access codes intercepted by a Zionite 23720 | -6/Zion | Learned Factory emergency access door positions 23968 | -6/Zion | Met Imprinter 24352 | -6/Zion | Imprinted 24354 | -6/Zion | Declared Zion's savior 24740 | -6/Zion | Opened final containment barrier to the Deep Caves 24764 | -6/Zion | Discovered new exit (range 3) 24764 | -6/Zion | Saw the warning signs outside the Deep Caves entrance 24767 | -6/Zion | Identified exit to Deep Caves 24994 | -6/Zion | Entered Deep Caves 24994 | -6/Deep Caves | Accompanied by 4 allies 25226 | -6/Deep Caves | Attacked by Z-Imprinter 25284 | -6/Deep Caves | Core integrity fell below 50% 25291 | -6/Deep Caves | Core integrity fell below 20% 25300 | -6/Deep Caves | Destroyed by Z-Imprinter with Zionite Laser-M Last Messages --------------- 25260_ Hvy. Flak Cannon destroyed. 25264_ Dropped Huge Storage Unit. 25266_ Structural Scanner destroyed. 25271_ Destroyed Prototype Protection. 25275_ Mak. Shrapnel Gun destroyed. 25277_ Acquired Power Sword. 25280_ Arm. Huge Wheel destroyed. 25281_ Destroyed Prototype Hover Unit. 25282_ Arm. Huge Wheel destroyed. 25285_ Great Maul follow-up attack on DO-JO0(z). 25285_ Destroyed Prototype Hover Unit. 25285_ Destroyed Prototype Energy Gun. 25285_ DO-JO0(z) system corrupted by crushing effect. 25285_ DO-JO0(z) knocked back. 25286_ DO-JO0(z) system terminally corrupted. 25286_ Exp. Heat Sink fried. 25287_ Great Maul destroyed. 25298_ KD-12R(z) destroyed. [Achievement: I Think I Know What's Going On] Map ----- +----------------------------------------------------+ | | | | | | | | | | | | | | | | | | | | | | | | | | | | | ??????????????????????????????####???????????????? | | ????????????????????????????#### #???????????????? | | ??????????????????#####?????#### ##??????????????? | | ??????? ? ################ ##?????????????? | | ??????? ###### #########;;;###?????????????# | | ????? ## # ####;## !*####?????####### | | ????? ;##;# &]!## #?????####### | | ????? &!!; #?????## | | ????? /!/ ##?###### | | ?????? !!!##?####### ### | | ?????? ! ; ##?### ## ### | | ???????""" @%= ;;##### # ### | | ????????"" ! % I###### ### | | ?????????" % ## | | ?????????" # | | ???????? ## | | ?????????" ######### | | ?????????" ########### | | ?????????? #;###???#### | | ??????????? ###????##### | | ???????????? ###????### | | ????????????? ##???### | | ?????????????? ##??### | | ??????????????? ##??## | | ???????????????? ###?### | | ???????????????? ###?## ### | | ???????????????? ##?## ###### | | ???????????????? ##?### ### | | ???????????????? ###?######### | | ???????????????? ####??######## ## | | ???????????????? ####????????## ## | | ???????????????? ###????????## ## | | ???????????????? ##????????## ## | | ????????????????? ##????????## ## | | ????????????????? ###????????## ## | | ????????????????? ###????????## ## | +----------------------------------------------------+ Best States ------------- Heat Dissipation 52 Energy Generation 19 Energy Capacity 500 Matter Stores 300 Matter Capacity 300 Sight Range 16 Terrain Scan Range 16 Terrain Scan Density 10 ECM Strength 1 Jamming Range 12 Cloak Strength 2 Armor Coverage 450 Evasion (%) 44 Recoil Reduction 2 Offensive Hacking 20 Defensive Hacking 12 Trap Extractor Capacity 6 Item Schematics ----------------- Arm. Wheel | -9/Materials | Scanalyzed Imp. Trap Extractor | -9/Materials | Scanalyzed Seismic Detector | -9/Materials | Scanalyzed Huge Storage Unit | -9/Materials | Scanalyzed Hacking Suite | -9/Materials | Scanalyzed Med. Armor Plating | -9/Materials | Scanalyzed Rocket Launcher | -8/Materials | Scanalyzed Transmission Jammer | -7/Factory | Scanalyzed Trap Extractor | -7/Factory | Scanalyzed Robot Schematics ------------------ None Fabricated ------------ Imp. Trap Extractor | x2 | -7/Factory Alien Tech Used ----------------- None Achievements -------------- I Think I Know What's Going On Challenges ------------ None Game ------ Seed CatalystImprovedPerforator Manual? 0 Play Time 04:06:32 Cumulative 139.1 hours Start 2024.10.22 @ 17:50:18 End 2024.10.24 @ 15:52:02 Sessions 14 Manual Loads 0 Difficulty Rogue Special Mode None Game No. 93 Rogue 90 Adventurer 3 Explorer 0 Win Type - Total 1 Types 1/0/0/0/0/0/0/0/0 Lore% 50 Gallery% 56 Achievement% 46 Wizard Run 0 Options --------- Layout 1 ASCII 0 Keyboard 1 Movement Vi Keybinds 0 Fullscreen 1 Font 28/SmallcapsGlow Map View 50x43 Zoom Use 0% Tactical HUD 1 Map Filters NONE Filters NONE Steam 1 RUN: b46344f9-a17e-48f3-9a50-49c28aa66d99